Cogmind - Beta 10.2 @@@ ROGUE MODE // 2020.11.02 @ 19:17:51 // Halloween2020/ForbiddenLore Player: Terminus Result: Destroyed by as-54409 with Assembled Rifle Performance ------------- Evolutions (0) 0 Regions Visited (4) 800 Robots Destroyed (40) 200 Value Destroyed (765) 765 Prototype IDs (0) 0 Alien Tech Used (0) 0 Bonus (16) 16 TOTAL SCORE: 1781 Bonus ------- High Alert Combat Kills 16 Cogmind --------- Core Integrity 0/250 Matter 247/300 Energy 250/250 System Corruption 0% Temperature Cool (0) Movement Walking (180) Ox2 Location -9/Mines Parts ------- > --- POWER (1) -------- Ion Engine > --- PROPULSION (2) --- Aluminum Leg Aluminum Leg > --- UTILITY (2) ------ Large Storage Unit Large Storage Unit > --- WEAPON (2) ------- Small Laser Grenade Launcher > --- INVENTORY (16) --- Aluminum Leg Aluminum Leg Aluminum Leg Heat Sink Improved Heat Sink Large Storage Unit EM Pulse Gun Small Laser Grenade Launcher Peak State ------------ > --- POWER ------------ Ion Engine > --- PROPULSION ------- Aluminum Leg Aluminum Leg > --- UTILITY ---------- Large Storage Unit Large Storage Unit > --- WEAPON ----------- Small Laser Light Assault Rifle > --- INVENTORY -------- Ion Engine Aluminum Leg Aluminum Leg Aluminum Leg Heat Sink Large Storage Unit Medium Laser Light Assault Rifle Grenade Launcher Grenade Launcher [Rating: 8] Favorites ----------- Power Ion Engine Engine Ion Engine Propulsion Aluminum Leg Leg Aluminum Leg Utility Large Storage Unit Storage Large Storage Unit Weapon Small Laser Energy Gun Small Laser Ballistic Gun Light Assault Rifle Launcher Grenade Launcher Build | -11 -10 -10 -10 -9 ------- Run | Scr Mat Min Exi Min Slots Evolved . | . . . . . Power . | . . . . . Propulsion . | . . . . . Utility . | . . . . . Weapon . | . . . . . Parts Attached 31 | 7 12 11 . 1 Power 2 | 1 . 1 . . Engine 2 | 1 . 1 . . Core . | . . . . . Reactor . | . . . . . Propulsion 6 | 2 2 2 . . Treads . | . . . . . Leg 6 | 2 2 2 . . Wheel . | . . . . . Hover . | . . . . . Flight . | . . . . . Utility 4 | 2 2 . . . Device . | . . . . . Storage 4 | 2 2 . . . Processor . | . . . . . Hackware . | . . . . . Protection . | . . . . . Artifact . | . . . . . Weapon 19 | 2 8 8 . 1 Energy Gun 11 | 1 5 5 . . Energy Cannon . | . . . . . Ballistic Gun 3 | 1 1 1 . . Ballistic Cannon . | . . . . . Launcher 5 | . 2 2 . 1 Special Weapon . | . . . . . Impact Weapon . | . . . . . Slashing Weapon . | . . . . . Piercing Weapon . | . . . . . Special Melee Weapon . | . . . . . Unidentified Prototypes . | . . . . . Parts Lost 11 | . 5 6 . . Power 1 | . . 1 . . Propulsion 1 | . 1 . . . Utility . | . . . . . Weapon 9 | . 4 5 . . Highest Loss Streak 3 | . 3 3 . . Average Slot Usage (%) 99 | . 99 99 100 100 Engine 13 | . 14 13 14 14 Leg 28 | . 28 28 28 28 Storage 28 | . 28 28 28 28 Energy Gun 19 | . 17 14 28 25 Ballistic Gun 8 | . 9 13 . . Naked Turns . | . . . . . Heaviest Build 41 | 17 41 41 39 41 Greatest Support 20 | 20 20 20 20 20 Greatest Overweight (x) 4 | 4 2 2 1 2 Average Overweight (x) . | . . 1 1 1 Largest Inventory Capacity 16 | 8 16 16 16 16 Average Capacity 15 | 5 14 16 16 16 Most Carried 12 | 1 9 12 9 9 Average Carried 7 | . 5 10 9 9 Final Capacity 16 | 8 16 16 16 16 Final Carried 9 | . 9 9 9 9 Class Distribution -------------------- 73% | Mutant 26% | Scavenger-Mutant Dominant Class ---------------- Mutant | -10/Materials Mutant | -10/Mines Scavenger-Mutant | -10/Exiles Scavenger-Mutant | -9/Mines Resources | -11 -10 -10 -10 -9 ----------- Run | Scr Mat Min Exi Min Matter Collected 676 | 276 273 127 . . Remotely . | . . . . . Salvage Created 998 | 109 625 264 . . Parts 71 | 7 41 23 . . Haulers Intercepted 2 | . 2 . . . Recyclers Shooed 1 | . 1 . . . Parts Field Recycled . | . . . . . Retrieved Matter . | . . . . . Parts Self-Destructed . | . . . . . Prevented . | . . . . . Kills | -11 -10 -10 -10 -9 ------- Run | Scr Mat Min Exi Min Combat Hostiles Destroyed 22 | . 13 9 . . Guns 10 | . 6 4 . . AOE 12 | . 7 5 . . Classes Destroyed 8 | 2 6 . . . Worker 7 | . 6 1 . . Builder 4 | . 4 . . . Tunneler 1 | 1 . . . . Hauler 2 | . 2 . . . Recycler 2 | 1 1 . . . Watcher 2 | . 2 . . . Swarmer 6 | . 3 3 . . Grunt 16 | . 10 6 . . Best Kill Streak 17 | 2 17 4 . . Combat Bots Only 7 | . 7 4 . . Max Kills in Single Turn 6 | 1 6 2 . . Gunslinging . | . . . . . Exploded 2 | . 2 2 . . Melee . | . . . . . Uniques/NPCs Destroyed . | . . . . . Combat | -11 -10 -10 -10 -9 -------- Run | Scr Mat Min Exi Min Damage Taken 1273 | . 683 528 . 62 Core 259 | . 168 62 . 29 Absorbed by Shields . | . . . . . Core Remaining (%) 100 | 100 . . . . Volleys Fired 91 | 2 61 27 . 1 Largest 2 | 2 2 2 . 1 Hottest 90 | 70 90 70 . 30 Shots Fired 169 | 4 114 50 . 1 Gun 157 | 4 107 46 . . Cannon . | . . . . . Launcher 12 | . 7 4 . 1 Special . | . . . . . Kinetic 68 | 2 41 25 . . Thermal 89 | 2 66 21 . . Explosive 12 | . 7 4 . 1 Electromagnetic . | . . . . . Robot Hit Streak 30 | 2 30 8 . . Robot Miss Streak 5 | 1 3 5 . 3 Penetration Max . | . . . . . Secondary Targets . | . . . . . Shots Hit Robots 112 | 3 77 32 . . Core Hits 62 | 3 40 18 . 1 Critical Hits . | . . . . . Critical Kills . | . . . . . Critical Parts Destroyed . | . . . . . Melee Attacks . | . . . . . Impact . | . . . . . Slashing . | . . . . . Piercing . | . . . . . Sneak Attacks . | . . . . . Combat Hostiles . | . . . . . Follow-up Attacks . | . . . . . Damage Inflicted 2637 | 53 1968 608 . 8 Guns 1264 | 53 913 298 . . Cannons . | . . . . . Explosions 1373 | . 1055 310 . 8 Melee . | . . . . . Ramming . | . . . . . Kinetic 569 | 28 413 128 . . Thermal 1017 | 25 822 170 . . Explosive 1051 | . 733 310 . 8 Electromagnetic . | . . . . . Impact . | . . . . . Slashing . | . . . . . Piercing . | . . . . . Highest Corruption . | . . . . . Average Corruption . | . . . . . Corruption Purged . | . . . . . Overload Shots . | . . . . . Overflow Damage 35 | . 18 17 . . Projectiles . | . . . . . Explosions 35 | . 18 17 . . Melee . | . . . . . Knockbacks . | . . . . . Impact . | . . . . . Kinetic . | . . . . . Secondary . | . . . . . Self-Inflicted Damage 14 | . . 14 . . Shots 2 | . . 2 . . Rammed . | . . . . . Targets Rammed . | . . . . . Kicked . | . . . . . Crushed . | . . . . . Highest Temperature 315 | 18 315 161 . . Average Temperature 80 | 10 86 69 . . Received Heat Transfer 600 | . 327 273 . . Siege Activations . | . . . . . Robots Corrupted . | . . . . . Combat Hostiles . | . . . . . Parts Fried . | . . . . . Impact Corruptions . | . . . . . Robots Melted . | . . . . . Combat Hostiles . | . . . . . Parts Melted 2 | . 1 1 . . Heat Transferred 2106 | 74 1573 459 . . Parts Sabotaged . | . . . . . Parts Stolen . | . . . . . Parts Stripped . | . . . . . Power Chain Reactions . | . . . . . Missiles Intercepted . | . . . . . Alert | -11 -10 -10 -10 -9 ------- Run | Scr Mat Min Exi Min Peak Influence 429 | 10 429 112 . . Initial 7 | . 6 7 . . Average 85 | 2 124 62 . . Maximum Alert Level 2 | . 2 . . . Low Security (%) 86 | 100 74 100 . 100 Level 1 9 | . 17 . . . Level 2 4 | . 8 . . . Level 3 . | . . . . . Level 4 . | . . . . . Level 5 . | . . . . . High Security . | . . . . . Max Security . | . . . . . Squads Dispatched 2 | . 2 . . . Investigation 1 | . 1 . . . Extermination . | . . . . . Reinforcement 1 | . 1 . . . Assault . | . . . . . Garrison . | . . . . . Intercept . | . . . . . Construction Impeded . | . . . . . Haulers Reinforced . | . . . . . Stealth | -11 -10 -10 -10 -9 --------- Run | Scr Mat Min Exi Min Distress Signals 2 | . 2 . . . Communications Jammed . | . . . . . Distress Signals . | . . . . . Times Spotted 38 | . 26 9 . 3 Peak Tracking Total 6 | . 6 3 . 3 Tactical Retreats 4 | . 4 . . . Traps | -11 -10 -10 -10 -9 ------- Run | Scr Mat Min Exi Min Traps Triggered 2 | . 2 . . . Indirectly . | . . . . . Trap Hack Attempts . | . . . . . Triggered . | . . . . . Disarmed . | . . . . . Reprogrammed . | . . . . . Reused . | . . . . . Traps Extracted . | . . . . . Installed . | . . . . . Triggered . | . . . . . Machines | -11 -10 -10 -10 -9 ---------- Run | Scr Mat Min Exi Min Machines Disabled 4 | . 4 . . . Max in Single Turn 3 | . 3 . . . Machines Sabotaged . | . . . . . Garrisons Compromised . | . . . . . Overloaded Fab Kills . | . . . . . Fab Network Shutdowns . | . . . . . Hacking | -11 -10 -10 -10 -9 --------- Run | Scr Mat Min Exi Min Machines Accessed 7 | . 6 . 1 . Terminals 5 | . 5 . . . Fabricators . | . . . . . Repair Stations . | . . . . . Recycling Units 1 | . 1 . . . Scanalyzers . | . . . . . Garrison Access . | . . . . . Total Hacks 24 | . 18 . 6 . Successful 17 | . 11 . 6 . Failed 7 | . 7 . . . Catastrophic 1 | . 1 . . . Database Lockouts . | . . . . . Manual 13 | . 13 . . . Terminals 17 | . 17 . . . Fabricators . | . . . . . Repair Stations . | . . . . . Recycling Units 1 | . 1 . . . Scanalyzers . | . . . . . Garrison Access . | . . . . . Terminal Hacks 12 | . 6 . 6 . Record 6 | . . . 6 . Alert Level 2 | . 2 . . . Unreport Threat 2 | . 2 . . . Zone Layout 2 | . 2 . . . Fabricator Hacks . | . . . . . Repair Station Hacks . | . . . . . Recycling Unit Hacks . | . . . . . Scanalyzer . | . . . . . Garrison Access Hacks . | . . . . . Unauthorized Hacks 5 | . 5 . . . Terminals 4 | . 4 . . . Botnet 4 | . 4 . . . Fabricators . | . . . . . Repair Stations . | . . . . . Recycling Units 1 | . 1 . . . Tunnel 1 | . 1 . . . Scanalyzers . | . . . . . Garrison Access . | . . . . . Data Cores Recovered . | . . . . . Used . | . . . . . Hacking Detections 5 | . 5 . . . Full Trace Events . | . . . . . Feedback Events . | . . . . . Feedback Blocked . | . . . . . Robot Schematics Acquired . | . . . . . Robots Built . | . . . . . Matter . | . . . . . Time . | . . . . . Total Robot Build Rating . | . . . . . Part Schematics Acquired . | . . . . . Parts Built . | . . . . . Matter . | . . . . . Time . | . . . . . Total Part Build Rating . | . . . . . Parts Repaired . | . . . . . Time . | . . . . . Parts Recycled . | . . . . . Recycled Matter . | . . . . . Retrieved Matter . | . . . . . Retrieved Components . | . . . . . Parts Scanalyzed . | . . . . . Part Schematics Acquired . | . . . . . Parts Damaged . | . . . . . Bothacking | -11 -10 -10 -10 -9 ------------ Run | Scr Mat Min Exi Min Used RIF Installer . | . . . . . Robots Hacked . | . . . . . Non-combat . | . . . . . Combat . | . . . . . Robot Hacks Applied . | . . . . . Relay Couplers Released . | . . . . . Robots Rewired . | . . . . . Allies Hacked . | . . . . . Hacks Repelled . | . . . . . Allies | -11 -10 -10 -10 -9 -------- Run | Scr Mat Min Exi Min Total Allies . | . . . . . Largest Group . | . . . . . Highest-Rated Group . | . . . . . Highest-Rated Ally . | . . . . . Total Orders . | . . . . . Ally Attacks . | . . . . . Total Damage . | . . . . . Kills . | . . . . . Allies Corrupted . | . . . . . Allies Melted . | . . . . . Intel | -11 -10 -10 -10 -9 ------- Run | Scr Mat Min Exi Min Robot Analysis Total . | . . . . . Derelict Logs Recovered 1 | . . 1 . . Drone Launches . | . . . . . Drone Recoveries . | . . . . . Exploration | -11 -10 -10 -10 -9 ------------- Run | Scr Mat Min Exi Min Turns Passed 2340 | 91 1024 659 368 198 Spaces Moved 1342 | 58 550 368 246 120 Core 17 | 17 . . . . Treads . | . . . . . Legs 1325 | 41 550 368 246 120 Wheels . | . . . . . Hover . | . . . . . Flight . | . . . . . Fastest Speed 50 | 50 120 150 150 150 Average Speed 148 | 125 147 150 150 152 Slowest Speed 250 | 250 180 180 150 180 Overloaded Moves . | . . . . . Propulsion Burnouts . | . . . . . Robots Hopped . | . . . . . Cave-ins Triggered . | . . . . . Exploration Rate (%) 48 | 4 87 67 60 22 Regions Visited 4 Branch Regions 3 Pre-discovered Areas 2 | . 1 . 1 . Known Exits Taken . | . . . . . Unknown Exits Taken 4 | 1 1 1 1 . Scrap Searched 1 | . . 1 . . Spaces Dug . | . . . . . Terrain Destroyed 128 | . 82 40 . 6 Melee . | . . . . . Projectile . | . . . . . AOE 128 | . 82 40 . 6 Terrain Rammed . | . . . . . Walls Destroyed . | . . . . . Machines Disabled . | . . . . . Actions | -11 -10 -10 -10 -9 --------- Run | Scr Mat Min Exi Min Total 1521 | 69 647 427 245 133 Wait 34 | 1 10 12 . 11 Move 1338 | 57 549 367 245 120 Hop . | . . . . . Pick Up 21 | 1 13 7 . . Fast Attach 7 | 7 . . . . Attach 11 | . 5 6 . . Detach . | . . . . . Swap 13 | . 7 5 . 1 Drop 6 | 1 2 3 . . Fire 91 | 2 61 27 . 1 Melee . | . . . . . Ram . | . . . . . Kick . | . . . . . Crush . | . . . . . Escape Stasis . | . . . . . Rewire . | . . . . . Trap . | . . . . . Miscellaneous . | . . . . . Route ------- -11/Scrapyard -10/Materials (discovered 4 exits: [*Mat x3] / [*Min]) -10/Mines (discovered 3 exits: [*Mat x2] / *Exi) -10/Exiles -9/Mines History --------- Turn | Location | Event 12 | -11/Scrapyard | Discovered new exit (range 15) 92 | -11/Scrapyard | Entered Materials 238 | -10/Materials | Destroyed 7 combat bots 301 | -10/Materials | Build established: Mutant 333 | -10/Materials | Discovered new exit (range 6) 378 | -10/Materials | Core integrity fell below 50% 447 | -10/Materials | Discovered new exit (range 15) 624 | -10/Materials | Lost 3 parts (1n2w) 696 | -10/Materials | Discovered new exit (range 16) 943 | -10/Materials | Discovered new exit (range 14) 1116 | -10/Materials | Entered Mines 1132 | -10/Mines | Met a Derelict bent on vengeance 1324 | -10/Mines | Deemed a non-threat by the Exiles lab entrance 1324 | -10/Mines | Discovered new exit (range 5) 1341 | -10/Mines | Discovered new exit (range 13) 1342 | -10/Mines | Learned Materials emergency access door positions 1411 | -10/Mines | Lost 3 parts (3w) 1540 | -10/Mines | Discovered new exit (range 7) 1691 | -10/Mines | Excavation squad dispatched 1691 | -10/Mines | A large section of the Mines collapsed 1727 | -10/Mines | Core integrity fell below 20% 1765 | -10/Mines | Lost 3 parts (1p2w) 1775 | -10/Mines | Entered Exiles 1811 | -10/Exiles | Met 8R-AWN 1837 | -10/Exiles | Met EX-HEX 1895 | -10/Exiles | Met EX-DEC 1912 | -10/Exiles | Met EX-BIN 1940 | -10/Exiles | Learned location of Zion (-7) 2024 | -10/Exiles | Build established: Scavenger-Mutant 2131 | -10/Exiles | Discovered new exit (range 10) 2143 | -10/Exiles | Entered Mines 2290 | -9/Mines | Assembled infested the area 2295 | -9/Mines | Assisted by a Guerilla fighting off Assembled 2341 | -9/Mines | Destroyed by as-54409 with Assembled Rifle Last Messages --------------- >>Record "MSG003537-01*" Patchboard? -- HEX >>Record "MSG004902-01*" It's like the Pastebin of Zion. You can see what he wrote for yourself at 8KSDbDjz. --DEC >>Record "MSG004210-01" I heard a group of curious Zionites actually slipped into the Deep Caves and made it back to Zion, only to mysteriously disappear almost immediately after. What is going on up there... >>Record "MSG001836-01" DEC, I lent the Quad Micro-nuker to 99-TNT for a favor, so I'm not sure we'll ever get that back. Oops. 02131_ EXIT=FOUND LOCATION=UNKNOWN GOAL=ESCAPE 02290_ ALERT: Infestation in the mines, dispatching Demolisher response squad. 02295_ A derelict emerges from the shadows: "You need to get out of here! I've been tracking a group of Assembled to figure out where they're coming from, and they're closing on this area, come on!" Map ----- +----------------------------------------------------+ | | | | | | | | | | | | | | | | | | | ?????????????????????????????????????????????????? | | ?????????????????????????????????????????????????? | | ?????????????????????????????????????????????????? | | ?????????????????????????????????????????????????? | | ?????????????????????????????????????????????????? | | ???####?####?????????????###?????????????????????? | | #### ### #????????????## ##???????????????????? | | ####?????????# #???????????????????? | | #?????????# ##??????????????????? | | ### #??####????# ##?????????????????? | | ###?# #?## ##???# ##????????????????? | | # ## #???# #?# #????# ##???????????????? | | ## ### #???# #?# ##???## ##??????????????? | | ?###??# #???# ### ###### #??????????????? | | ####### #???# ## #??????????????? | | # #???# ### ##??????????????? | | # ##### ##### #?# a@ ##???????????????? | | # #???# #?# aa ###????????????????? | | # #???##### #### ### ##??????????????????? | | # #???????# #??# #?#####???????????????????? | | # #######?# #??# # | ????????????????????????? | | # ## #?# #????# ???????????????????????? | | # ## ### ##???# ??????????????????????? | | ## #???## ## ?????????????????????? | | #### #### #????## ##?? ????????????????????? | | ??#T #??? #?????# ##????????????????????????? | | ??## #??? #?????# ##?????????????????????????? | | ???# #??? #?????# #??????????????????????????? | | ???# #??? ????? #??????????????????????????? | | ???######???##?????# ???????????????????????????? | | ?????????????????????????????????????????????????? | | ?????????????????????????????????????????????????? | | ?????????????????????????????????????????????????? | | ?????????????????????????????????????????????????? | | ?????????????????????????????????????????????????? | | ?????????????????????????????????????????????????? | | ?????????????????????????????????????????????????? | | ?????????????????????????????????????????????????? | | ?????????????????????????????????????????????????? | | ?????????????????????????????????????????????????? | | ?????????????????????????????????????????????????? | +----------------------------------------------------+ Best States ------------- Heat Dissipation 25 Energy Generation 10 Energy Capacity 250 Matter Stores 300 Matter Capacity 300 Sight Range 16 Terrain Scan Density 10 Evasion (%) 40 Item Schematics ----------------- None Robot Schematics ------------------ None Fabricated ------------ Nothing Alien Tech Used ----------------- None Achievements -------------- None Challenges ------------ None Game ------ Seed GreatRecoilMediator Manual? 0 Play Time 00:11:36 Cumulative 1107.0 hours Start 2020.11.02 @ 19:06:52 End 2020.11.02 @ 19:17:51 Sessions 1 Manual Loads 0 Difficulty Rogue Special Mode Halloween2020/ForbiddenLore Game No. 361 Rogue 361 Adventurer 0 Explorer 0 Win Type - Total 80 Types 14/9/36/5/1/2/12/0/1 Lore% 96 Gallery% 95 Achievement% 85 Wizard Run 0 Options --------- ASCII 0 Keyboard 0 Movement Numpad Keybinds 0 Fullscreen 1 Font 18/SmallcapsGlow Map View 76x50 Tactical HUD 1 Map Filters NONE Filters NONE Steam 1 RUN: 0f608d56-6eb9-4efa-87fc-3f05e46a6b37